bitfinex/quotes_BTCUSD_20260215
["timestamp","ask_amount","ask_price","bid_price","bid_amount"]
[1771158233359,0.07203407,70389.0,70383.0,0.07103907]
[1771158233586,0.07203407,70389.0,70379.0,0.00012939]
[1771158233587,0.07103524,70388.0,70382.0,0.07103922]
[1771158233699,0.07203407,70389.0,70382.0,0.07103922]
[1771158233700,0.07103407,70389.0,70382.0,0.07103922]
[1771158233910,0.07103556,70388.0,70382.0,0.07103922]
[1771158234112,0.07103556,70388.0,70383.0,0.02305173]
[1771158234558,0.07103536,70389.0,70382.0,0.07104047]
[1771158234816,0.07103629,70387.0,70382.0,0.07104047]
[1771158235054,0.0710363,70387.0,70379.0,0.07117229]
[1771158235261,0.07103698,70386.0,70381.0,0.07104158]
[1771158235405,0.0710363,70387.0,70381.0,0.07104158]
[1771158235815,0.07103655,70388.0,70383.0,0.0710394]
[1771158236015,0.07103655,70388.0,70384.0,0.02305173]
[1771158236621,0.07103655,70388.0,70383.0,0.07103936]
[1771158236836,0.07103655,70388.0,70383.0,0.09409109]
[1771158237133,0.0002099,70392.0,70384.0,0.02305173]
[1771158237328,0.0002099,70392.0,70389.0,0.07103317]
[1771158237702,0.0002099,70392.0,70387.0,0.09408603]
[1771158237924,0.0002099,70392.0,70389.0,0.07103337]
[1771158238350,0.0002099,70392.0,70390.0,0.07103274]
[1771158238595,0.29553955,70401.0,70392.0,0.0710306]
[1771158238796,0.07102695,70396.0,70391.0,0.0710318]
[1771158239216,0.07102683,70396.0,70391.0,0.0710318]
[1771158239425,0.07102683,70396.0,70385.0,0.28414995]
[1771158239426,0.07102086,70402.0,70389.0,0.57780717]
[1771158239624,0.28408433,70402.0,70393.0,0.07102917]
[1771158239819,0.28408433,70402.0,70390.0,0.02305173]
[1771158239820,0.07102513,70398.0,70392.0,0.07102917]
[1771158240028,0.07102513,70398.0,70393.0,0.0710295]
[1771158240225,0.07102424,70399.0,70394.0,0.07102868]
[1771158240434,0.07102373,70399.0,70385.0,0.02305173]
[1771158240685,4e-05,70400.0,70386.0,0.07103659]
[1771158240889,0.01331318,70399.0,70389.0,0.07103332]
[1771158241079,0.07102916,70394.0,70388.0,0.07103419]
[1771158241282,0.07103037,70393.0,70388.0,0.07103419]
[1771158241895,0.07102987,70393.0,70388.0,0.07103419]
[1771158242259,0.07102916,70394.0,70388.0,0.07103419]
[1771158242759,0.07103035,70393.0,70387.0,0.07103404]
[1771158242964,0.28411612,70394.0,70382.0,0.02305173]
[1771158243161,0.07103219,70391.0,70385.0,0.07103714]
[1771158243512,0.0710324,70391.0,70385.0,0.07103714]
[1771158243648,0.0710324,70391.0,70386.0,0.07103674]
[1771158243859,0.0710324,70391.0,70385.0,0.07103714]
[1771158244063,0.07103094,70392.0,70386.0,0.07103678]
[1771158244293,0.07103225,70391.0,70385.0,0.07103714]
[1771158244916,0.07103225,70391.0,70384.0,0.07103731]
[1771158245291,0.07103311,70390.0,70384.0,0.07103731]
[1771158245492,0.58098105,70398.0,70380.0,0.0002]
[1771158245493,0.0709819,70381.0,70380.0,1e-08]
[1771158245875,0.07104022,70383.0,70380.0,1e-08]
[1771158246068,0.071041,70382.0,70380.0,1e-08]
[1771158246668,0.0710419,70381.0,70380.0,1e-08]
[1771158247831,0.08249059,70381.0,70380.0,1e-08]
[1771158248030,0.38037094,70381.0,70380.0,1e-08]
[1771158248232,0.08253158,70380.0,70379.0,0.00012939]
[1771158248450,0.08253158,70380.0,70369.0,0.07105346]
[1771158248451,0.07105603,70367.0,70366.0,0.02305173]
[1771158248676,0.00012936,70367.0,70363.0,0.07105963]
[1771158249111,0.00012936,70367.0,70365.0,0.02325173]
[1771158249314,0.07105137,70372.0,70365.0,0.02325173]
[1771158249516,0.07105041,70373.0,70367.0,0.07105532]
[1771158249758,0.07105041,70373.0,70368.0,0.07105468]
[1771158250007,0.07104934,70374.0,70372.0,0.07]
[1771158250453,0.07104997,70373.0,70372.0,0.07]
[1771158251546,0.0710555,70368.0,70365.0,0.02325173]
[1771158251751,0.07105463,70369.0,70365.0,0.0002]
[1771158252376,0.07105463,70369.0,70365.0,0.02325173]
[1771158252605,0.07105528,70368.0,70365.0,0.02325173]
[1771158252819,0.07105528,70368.0,70359.0,0.293674]
[1771158252820,0.07106815,70355.0,70335.0,0.42652457]
[1771158253030,3.999e-05,70380.0,70355.0,0.293674]
[1771158253031,0.07105586,70368.0,70355.0,0.293674]
[1771158253247,3.999e-05,70380.0,70354.0,0.00012936]
[1771158253454,0.07105428,70369.0,70363.0,0.07105995]
[1771158253659,0.07105174,70372.0,70365.0,0.07105729]
[1771158253869,3.999e-05,70380.0,70349.0,0.42644412]
[1771158254096,0.07104897,70374.0,70370.0,0.0241092]
[1771158254302,0.07104897,70374.0,70371.0,0.0241092]
[1771158254982,0.07104815,70375.0,70371.0,0.0241092]
[1771158255844,0.07104898,70374.0,70371.0,0.0241092]
[1771158256491,0.07104898,70374.0,70368.0,0.07105453]
[1771158256709,0.07104815,70375.0,70369.0,0.07105394]
[1771158256927,0.07105278,70371.0,70367.0,0.0241092]
[1771158257610,0.0710529,70372.0,70367.0,0.0241092]
[1771158258252,0.0710529,70372.0,70367.0,0.02396005]
[1771158258454,0.07104828,70375.0,70369.0,0.07105318]
[1771158258685,0.07104828,70375.0,70370.0,0.07105297]
[1771158258895,0.07104828,70375.0,70369.0,0.07105318]
[1771158258896,0.27608236,70379.0,70365.0,0.0002]
[1771158259095,0.07105458,70369.0,70365.0,0.0002]
[1771158259246,0.07105638,70367.0,70365.0,0.0002]
[1771158259654,0.07105704,70366.0,70365.0,0.0002]
[1771158261568,0.07106512,70358.0,70357.0,1e-08]
[1771158261770,0.07106815,70355.0,70347.0,0.0002744]
[1771158261999,0.07106815,70355.0,70347.0,0.07134892]
[1771158262203,0.07106815,70355.0,70348.0,0.07107515]
[1771158262404,0.07106815,70355.0,70350.0,0.07107303]
[1771158262596,0.07106815,70355.0,70347.0,0.07135039]
[1771158262801,0.07106754,70356.0,70347.0,0.0002744]
[1771158263005,0.07106815,70355.0,70348.0,0.07107483]
[1771158263512,0.07107261,70351.0,70347.0,0.0241092]
[1771158263711,0.0710714,70352.0,70347.0,0.0241092]
[1771158263976,0.07106884,70355.0,70349.0,0.07107379]
[1771158264140,0.07106879,70356.0,70350.0,0.07107287]
[1771158264482,0.07106851,70355.0,70349.0,0.07107379]
[1771158264896,0.28429645,70360.0,70348.0,0.07150736]
[1771158265113,0.07106411,70359.0,70349.0,0.07107359]
[1771158265325,0.07107111,70354.0,70348.0,0.09561644]
[1771158265477,0.07106884,70355.0,70349.0,0.07107341]
[1771158265697,0.07106411,70359.0,70348.0,0.09561644]
[1771158265698,0.07107084,70353.0,70348.0,0.09561644]
[1771158266052,4e-05,70360.0,70348.0,0.02454164]
[1771158266260,0.07106865,70355.0,70350.0,0.07107318]
[1771158266496,0.07106775,70356.0,70351.0,0.07107214]
[1771158267184,0.07106749,70356.0,70351.0,0.07107214]
[1771158267862,0.07106784,70357.0,70352.0,0.07107117]
[1771158268322,0.07106784,70357.0,70351.0,0.07107214]
[1771158270293,0.07106784,70357.0,70352.0,0.07107098]
[1771158270495,0.07106784,70357.0,70352.0,0.09518018]
[1771158270717,0.07106667,70358.0,70352.0,0.09518018]
[1771158270868,0.07106664,70357.0,70352.0,0.09518018]
[1771158272099,0.07106664,70357.0,70352.0,0.0241092]
[1771158272511,0.07106667,70358.0,70352.0,0.09517994]
[1771158272707,4e-05,70360.0,70354.0,0.07106827]
[1771158272907,0.57088272,70367.0,70356.0,0.07106676]
[1771158272908,0.07106247,70361.0,70356.0,0.07106676]
[1771158273180,0.00012939,70361.0,70355.0,0.0241092]
[1771158273297,0.00012939,70361.0,70357.0,0.0241092]
[1771158273504,0.0710565,70367.0,70362.0,0.0710606]
[1771158273709,0.07105711,70366.0,70364.0,0.0241092]
[1771158273934,0.0710565,70367.0,70364.0,0.0241092]
[1771158274396,0.07105733,70366.0,70364.0,0.0241092]
[1771158274640,0.07105675,70368.0,70364.0,0.0241092]
[1771158274881,0.07105675,70368.0,70359.0,0.27118068]
[1771158274882,0.02333017,70362.0,70352.0,0.07107069]
[1771158275105,0.07106585,70358.0,70353.0,0.07107001]
[1771158275339,0.07106585,70358.0,70352.0,0.07120008]
[1771158275542,0.07106585,70358.0,70353.0,0.07107015]
[1771158276710,0.07106585,70359.0,70353.0,0.07107015]
[1771158276711,0.07106585,70359.0,70354.0,0.07106899]
[1771158277337,0.02373017,70366.0,70357.0,0.07106558]
[1771158277338,0.07106151,70362.0,70357.0,0.07106558]
[1771158277562,0.07106324,70360.0,70355.0,0.07106756]
[1771158278173,0.07105805,70365.0,70352.0,0.0714002]
[1771158278378,0.07106684,70357.0,70352.0,0.09550945]
[1771158278755,0.07106684,70357.0,70352.0,0.07140025]
[1771158279395,0.28425604,70360.0,70349.0,0.28449607]
[1771158279396,0.02333017,70359.0,70349.0,1e-08]
[1771158279594,4e-05,70360.0,70349.0,1e-08]
[1771158279954,0.07107063,70353.0,70349.0,1e-08]
[1771158280541,0.07107063,70353.0,70346.0,0.0186111]
[1771158280750,0.07107067,70353.0,70347.0,0.07107579]
[1771158280950,0.001,70359.0,70341.0,0.0002]
[1771158280951,0.07107382,70350.0,70341.0,0.0002]
[1771158281153,0.07107452,70349.0,70344.0,0.07127874]
[1771158281727,0.28426453,70357.0,70345.0,0.07107775]
[1771158282003,0.07107332,70350.0,70345.0,0.36636763]
[1771158282297,0.07107332,70350.0,70345.0,0.07107775]
[1771158283069,0.07107794,70346.0,70344.0,0.0002]
[1771158283262,0.02456463,70353.0,70344.0,0.0002]
[1771158283469,0.07107774,70346.0,70344.0,0.0002]
[1771158284407,0.27336224,70343.0,70330.0,0.07109284]
[1771158284561,0.02304784,70341.0,70329.0,0.07109431]
[1771158284751,0.07108907,70335.0,70330.0,0.0710934]
[1771158284966,0.42644357,70350.0,70326.0,0.28438936]
[1771158284967,0.07107724,70346.0,70333.0,0.07135681]
[1771158285163,0.02304784,70343.0,70333.0,0.0002668]
[1771158285340,0.07108445,70339.0,70333.0,0.0002668]
[1771158285543,0.07108551,70338.0,70333.0,0.0002668]
[1771158285748,0.07108657,70337.0,70333.0,0.0002668]
[1771158286355,0.02304784,70354.0,70318.0,0.0002668]
[1771158286566,0.0003068,70370.0,70330.0,0.07109335]
[1771158286567,0.0710888,70335.0,70330.0,0.07109335]
[1771158286766,0.0710888,70335.0,70329.0,0.071094]
[1771158286971,0.07108922,70336.0,70329.0,0.071094]
[1771158287177,0.07108792,70337.0,70328.0,0.0185229]
[1771158287375,0.07108792,70337.0,70329.0,0.34950145]
[1771158287586,0.07108755,70336.0,70330.0,0.07109273]
[1771158287932,0.07108993,70334.0,70328.0,0.07109476]
[1771158288317,0.07109058,70333.0,70327.0,0.07109632]
[1771158288712,0.07109058,70333.0,70328.0,0.07109537]
[1771158289248,0.07108993,70334.0,70328.0,0.07109537]
[1771158290880,0.09413255,70339.0,70333.0,0.07108951]
[1771158291076,0.09413325,70338.0,70333.0,0.07108951]
[1771158291277,0.07108711,70337.0,70331.0,0.07109187]
[1771158291479,0.07108711,70337.0,70325.0,0.27840703]
[1771158291480,0.07108858,70335.0,70330.0,0.07109273]
[1771158291906,0.07108693,70337.0,70331.0,0.07109172]
[1771158292108,0.07108392,70340.0,70334.0,0.07108853]
[1771158292355,0.07108392,70340.0,70335.0,0.07108797]
[1771158292502,0.07108392,70340.0,70334.0,0.07108853]
[1771158293338,0.07112392,70340.0,70334.0,0.07100853]
[1771158293536,0.07108445,70339.0,70334.0,0.07100853]
[1771158294018,0.07108437,70339.0,70334.0,0.07100853]
[1771158294826,0.07108437,70339.0,70333.0,0.07108882]
[1771158294994,0.07108437,70339.0,70334.0,0.07108893]
[1771158295447,0.07112392,70340.0,70334.0,0.07108893]
[1771158295870,0.07112392,70340.0,70335.0,0.07108835]
[1771158296797,4e-05,70340.0,70336.0,0.07108671]
[1771158297004,0.28430484,70348.0,70342.0,0.07108028]
[1771158297005,0.07107595,70348.0,70342.0,0.07108028]
[1771158297363,0.02304784,70353.0,70339.0,0.27840703]
[1771158297364,0.02304784,70353.0,70341.0,0.07108153]
[1771158298151,0.07107369,70350.0,70344.0,0.07107831]
[1771158298351,0.07107574,70348.0,70342.0,0.07108072]
[1771158298971,0.07107672,70347.0,70341.0,0.07114559]
[1771158299187,0.07107672,70347.0,70342.0,0.07108099]
[1771158299738,0.07107574,70348.0,70343.0,0.07108021]
[1771158300435,0.07107574,70348.0,70343.0,0.07108024]
[1771158302441,0.07107574,70349.0,70343.0,0.07108024]
[1771158302651,0.07107162,70352.0,70347.0,0.07107622]
[1771158303087,0.07107137,70352.0,70347.0,0.07107622]
[1771158303498,0.07147069,70353.0,70351.0,0.07107129]
[1771158303499,0.0004,70353.0,70351.0,0.07107129]
[1771158303707,0.0004,70353.0,70352.0,0.07107118]
[1771158303921,0.0004,70353.0,70350.0,0.07107256]
[1771158304356,0.0004,70353.0,70349.0,0.07107221]
[1771158304573,0.0004,70353.0,70350.0,0.07107292]
[1771158305026,0.0004,70353.0,70349.0,0.07107221]
[1771158305241,0.07106823,70355.0,70349.0,0.07107221]
[1771158305242,0.07106892,70355.0,70350.0,0.27840703]
[1771158305497,0.07106845,70355.0,70349.0,0.07107221]
[1771158305975,0.07106887,70356.0,70350.0,0.07107292]
[1771158308179,0.07106887,70356.0,70350.0,0.07103292]
[1771158308375,0.02304784,70358.0,70354.0,0.07106828]
[1771158308578,0.00045,70361.0,70355.0,0.07106779]
[1771158308783,0.07151253,70361.0,70355.0,0.07106779]
[1771158309080,0.07146253,70361.0,70355.0,0.07106779]
[1771158310670,0.07106472,70359.0,70353.0,0.07106943]
[1771158310896,4e-05,70360.0,70355.0,0.07106781]
[1771158311529,4e-05,70360.0,70356.0,0.07106709]
[1771158312155,0.07106544,70358.0,70352.0,0.07107046]
[1771158312552,0.07106516,70358.0,70353.0,0.0710699]
[1771158312789,0.07110364,70360.0,70355.0,0.07106777]
[1771158312997,4e-05,70360.0,70355.0,0.07106754]
[1771158313213,0.07110316,70360.0,70355.0,0.07106754]
[1771158313428,0.07106473,70359.0,70354.0,0.0710676]
[1771158313649,0.07106518,70358.0,70353.0,0.07106958]
[1771158313854,0.07106518,70358.0,70349.0,0.27840703]
[1771158313855,0.28492232,70370.0,70343.0,4.230783]
[1771158314061,0.07106551,70358.0,70353.0,0.07106975]
[1771158314240,0.02436641,70357.0,70353.0,0.07106975]
[1771158314511,0.02436641,70357.0,70352.0,0.07106947]
[1771158314953,0.02436641,70356.0,70352.0,0.07106947]
[1771158315165,0.02436641,70356.0,70353.0,0.07106995]
[1771158315963,0.02447491,70356.0,70353.0,0.07106995]
[1771158316370,0.02447491,70356.0,70354.0,0.07106912]
[1771158317441,0.0001085,70356.0,70355.0,0.07106815]
[1771158323257,0.0001085,70356.0,70355.0,0.07102815]
[1771158323862,0.00052939,70364.0,70360.0,0.07106222]
[1771158324278,0.07145704,70366.0,70356.0,0.02374256]
[1771158324279,0.0004,70366.0,70365.0,0.07105805]
[1771158324887,0.0004,70366.0,70362.0,0.07106086]
[1771158325114,0.0004,70366.0,70362.0,0.00012939]
[1771158325370,0.0004,70366.0,70362.0,0.07119021]
[1771158325906,0.0004,70366.0,70365.0,0.07105805]
[1771158327258,0.0004,70366.0,70364.0,0.07105826]
[1771158327473,0.0004,70366.0,70365.0,0.07105805]
[1771158328210,0.0004,70366.0,70365.0,0.060447]
[1771158329781,0.07145744,70366.0,70362.0,0.00012939]
[1771158330506,0.0004,70366.0,70362.0,0.07119041]
[1771158330709,0.0004,70366.0,70363.0,0.07105977]
[1771158331300,0.0004,70366.0,70362.0,0.07119041]
[1771158332630,0.0004,70366.0,70364.0,0.07105889]
[1771158332814,0.0004,70366.0,70363.0,0.07105977]
[1771158335257,0.0004,70366.0,70362.0,0.00012939]
[1771158335464,0.07105969,70365.0,70362.0,0.00012939]
[1771158335669,0.0004,70366.0,70362.0,0.00012939]
[1771158335867,0.0004,70366.0,70361.0,0.0710615]
[1771158336047,0.00052939,70366.0,70361.0,0.0710615]
[1771158336884,0.00052939,70366.0,70365.0,0.07105805]
[1771158337219,0.00052939,70366.0,70364.0,0.0710586]
[1771158337638,0.00052939,70366.0,70362.0,0.07106037]
[1771158338249,0.00052939,70366.0,70362.0,0.07102037]
[1771158339926,0.00052939,70366.0,70363.0,0.07105955]
[1771158340140,0.00052939,70366.0,70361.0,0.07106037]
[1771158340919,0.07105876,70365.0,70356.0,0.28426844]
[1771158341124,0.00052939,70366.0,70350.0,4e-05]
[1771158341125,0.2744216,70361.0,70350.0,4e-05]
[1771158341326,0.07107691,70347.0,70340.0,0.0002]
[1771158341534,0.07106815,70355.0,70342.0,0.28432515]
[1771158341730,0.2744216,70357.0,70342.0,0.28432515]
[1771158341731,0.07107251,70351.0,70346.0,0.07107712]
[1771158342166,0.07107044,70353.0,70347.0,0.0710757]
[1771158342564,0.02436641,70354.0,70345.0,0.07107772]
[1771158342766,0.70785409,70444.0,68892.0,0.00125169]
[1771158342767,0.42636764,70362.0,70337.0,0.28434398]
[1771158342969,0.01330688,70361.0,70334.0,0.0002]
[1771158343194,0.29402611,70339.0,70320.0,0.28011652]
[1771158343323,0.07108687,70337.0,70331.0,0.07109164]
[1771158343528,0.02304546,70339.0,70331.0,0.07109164]
[1771158343828,0.28893421,70342.0,70320.0,0.28011652]
[1771158343829,0.02304546,70337.0,70328.0,0.0004985]
[1771158344040,0.56851403,70359.0,70320.0,0.28011652]
[1771158344041,0.02304546,70327.0,70320.0,0.0002]
[1771158344249,0.09073277,70327.0,70320.0,0.0002]
[1771158344470,0.28893421,70332.0,70320.0,0.0002]
[1771158344471,0.07110246,70322.0,70320.0,0.0002]
[1771158344702,0.07109997,70324.0,70321.0,0.00782416]
[1771158344908,0.07110246,70322.0,70320.0,0.00032956]
[1771158345139,0.07110246,70322.0,70310.0,0.27991652]
[1771158345140,0.28893421,70324.0,70301.0,0.0002]
[1771158345352,0.07110959,70314.0,70308.0,0.07111503]
[1771158345556,0.07110959,70314.0,70308.0,0.07124462]
[1771158345766,0.07111068,70313.0,70308.0,0.00012959]
[1771158345998,0.07111068,70313.0,70309.0,0.00782416]
[1771158346383,0.02304546,70313.0,70309.0,0.00782416]
[1771158346593,0.09415693,70313.0,70309.0,0.00782416]
[1771158346797,0.07111254,70312.0,70309.0,0.00782416]
[1771158347246,0.28893421,70319.0,70309.0,0.00782416]
[1771158347247,0.07110531,70319.0,70313.0,0.0711097]
[1771158347452,0.07110587,70318.0,70312.0,0.07110968]
[1771158347672,0.07110576,70318.0,70311.0,0.0711126]
[1771158347882,0.07110582,70318.0,70312.0,0.07111093]
[1771158348089,0.07110907,70315.0,70309.0,0.07893808]
[1771158348303,0.07110959,70314.0,70309.0,0.07893808]
[1771158348709,0.07110907,70315.0,70309.0,0.07893808]
[1771158349119,0.07110618,70318.0,70312.0,0.07111156]
[1771158349326,0.07110514,70319.0,70313.0,0.07111037]
[1771158349539,0.02304546,70321.0,70308.0,0.00012959]
[1771158349763,0.31197967,70336.0,70311.0,0.02455158]
[1771158349964,0.07109964,70324.0,70318.0,0.07110505]
[1771158351211,0.07110156,70322.0,70315.0,0.07110805]
[1771158351414,0.07110156,70322.0,70316.0,0.00782416]
[1771158351621,0.07110414,70320.0,70316.0,0.00782416]
[1771158351841,0.0711031,70321.0,70316.0,0.00782416]
[1771158352060,0.02304546,70321.0,70310.0,0.07111338]
[1771158352257,0.07110878,70315.0,70310.0,0.00353843]
[1771158352487,0.0711081,70316.0,70310.0,0.07465164]
[1771158353107,0.07110495,70319.0,70312.0,0.0711108]
[1771158353316,0.07110566,70318.0,70312.0,0.0710708]
[1771158355317,0.07114515,70320.0,70315.0,0.07110851]
[1771158355547,0.07110477,70319.0,70315.0,0.02455158]
[1771158355768,0.07114515,70320.0,70313.0,0.07110997]
[1771158355959,0.07114515,70320.0,70314.0,0.07110898]
[1771158356370,0.07109746,70326.0,70313.0,0.00353843]
[1771158356551,0.07109746,70326.0,70307.0,0.28005602]
[1771158356552,0.07113387,70330.0,70325.0,0.07109844]
[1771158356761,4e-05,70330.0,70325.0,0.07109844]
[1771158356982,4e-05,70330.0,70322.0,0.30895683]
[1771158356983,4e-05,70330.0,70327.0,0.07109593]
[1771158357197,4e-05,70330.0,70328.0,0.00353843]
[1771158357600,4e-05,70330.0,70327.0,0.07109573]
[1771158357822,4e-05,70330.0,70327.0,0.07463416]
[1771158358862,4e-05,70330.0,70329.0,0.07109442]
[1771158360152,4e-05,70330.0,70326.0,0.0710974]
[1771158360352,4e-05,70330.0,70326.0,0.07463583]
[1771158361154,4e-05,70330.0,70326.0,0.00353843]
[1771158361555,4e-05,70330.0,70326.0,0.07109726]
[1771158361755,4e-05,70330.0,70325.0,0.07109818]
[1771158361980,4e-05,70330.0,70326.0,0.07109725]
[1771158362186,4e-05,70330.0,70325.0,0.07109818]
[1771158362414,0.07113379,70330.0,70324.0,0.07109942]
[1771158362612,0.07109495,70329.0,70324.0,0.07109942]
[1771158363020,4e-05,70330.0,70317.0,0.07110554]
[1771158363221,4e-05,70330.0,70327.0,0.07109595]
[1771158363564,4e-05,70330.0,70326.0,0.09564837]
[1771158363696,0.07108787,70336.0,70330.0,0.07109279]
[1771158363898,0.07108946,70334.0,70329.0,0.071094]
[1771158364101,0.07108896,70335.0,70329.0,0.071094]
[1771158364305,0.57596009,70357.0,70336.0,0.07108677]
[1771158364306,0.07108267,70341.0,70336.0,0.07108677]
[1771158364506,0.07108267,70341.0,70335.0,0.07108832]
[1771158364730,0.0004,70336.0,70335.0,0.07108832]
[1771158365144,0.00016942,70340.0,70339.0,0.07108432]
[1771158365343,0.0004,70343.0,70341.0,0.07108191]
[1771158365541,0.00083179,70343.0,70342.0,0.07108128]
[1771158365862,0.00083179,70343.0,70341.0,0.07108191]
[1771158366281,0.00083179,70343.0,70342.0,0.07108128]
[1771158366488,5e-05,70346.0,70337.0,0.02455158]
[1771158366695,5e-05,70346.0,70345.0,0.07107825]
[1771158366903,0.07112733,70346.0,70340.0,0.07108167]
[1771158367346,0.07107733,70346.0,70340.0,0.07108167]
[1771158367727,0.07121988,70347.0,70340.0,0.01583889]
[1771158367931,0.07112781,70346.0,70341.0,0.00353843]
[1771158368133,5e-05,70346.0,70341.0,0.07462004]
[1771158368423,5e-05,70346.0,70342.0,0.02455158]
[1771158368629,0.07112744,70346.0,70341.0,0.00353843]
[1771158368831,0.07107975,70344.0,70341.0,0.00353843]
[1771158369048,0.0710804,70343.0,70341.0,0.00353843]
[1771158369242,0.07107975,70344.0,70341.0,0.00353843]
[1771158369447,0.07107992,70345.0,70341.0,0.00353843]
[1771158370083,0.07108099,70343.0,70338.0,0.07108507]
[1771158370289,5e-05,70344.0,70339.0,0.0710839]
[1771158370494,0.07112935,70344.0,70339.0,0.0710839]
[1771158371137,0.07112935,70344.0,70338.0,0.07108507]
[1771158371380,0.07152935,70344.0,70338.0,0.07108507]
[1771158371773,0.07152935,70344.0,70339.0,0.07108429]
[1771158374033,0.00045,70344.0,70343.0,0.07108027]
[1771158374874,0.00045,70344.0,70341.0,0.07108182]
[1771158375427,0.00045,70344.0,70342.0,0.07108118]
[1771158376203,0.00045,70344.0,70343.0,0.07108027]
[1771158376575,0.0001434,70347.0,70339.0,0.0228086]
[1771158376576,0.0001434,70347.0,70344.0,0.07107902]
[1771158376793,0.07111334,70350.0,70277.0,0.11853552]
[1771158376794,4e-05,70350.0,70349.0,0.07107421]
[1771158376990,0.56838981,70375.0,70349.0,0.00043179]
[1771158376991,0.0714646,70359.0,70349.0,0.00043179]
[1771158377191,0.0714646,70359.0,70354.0,0.07106914]
[1771158377396,0.0714646,70359.0,70355.0,0.0228086]
[1771158377550,0.0714646,70359.0,70354.0,0.07106914]
[1771158377748,0.07106661,70357.0,70352.0,0.07107066]
[1771158377918,0.07106661,70357.0,70352.0,0.0228086]
[1771158378115,0.07106708,70358.0,70352.0,0.09387975]
[1771158378520,0.07106708,70358.0,70353.0,0.07107014]
[1771158379624,0.07134434,70362.0,70357.0,0.07106534]
[1771158379832,0.0710632,70360.0,70355.0,0.07106736]
[1771158380035,0.0710632,70360.0,70355.0,0.09387596]
[1771158380238,0.0002829,70362.0,70355.0,0.0228086]
[1771158380631,0.0002829,70362.0,70355.0,0.28426859]
[1771158380834,0.0002829,70362.0,70356.0,0.0228086]
[1771158381091,0.0002829,70362.0,70357.0,0.07106532]
[1771158381339,0.0002829,70362.0,70357.0,0.09387392]
[1771158381759,0.07134419,70362.0,70357.0,0.09387392]
[1771158382244,0.0002829,70362.0,70357.0,0.09387392]
[1771158382381,0.0002829,70362.0,70358.0,0.0710651]
[1771158383009,0.0002829,70362.0,70359.0,0.07106338]
[1771158383213,0.0002829,70362.0,70358.0,0.07106472]
[1771158383845,0.0002829,70362.0,70359.0,0.07106399]
[1771158384244,0.0002829,70362.0,70358.0,0.07106486]
[1771158386092,0.0002829,70362.0,70357.0,0.0002]
[1771158386093,0.07106363,70360.0,70357.0,0.0002]
[1771158386720,0.07106417,70359.0,70357.0,0.0002]
[1771158386915,0.07106363,70360.0,70357.0,0.0002]
[1771158387119,0.07106372,70361.0,70357.0,0.0002]
[1771158387523,0.0710631,70360.0,70357.0,0.0002]
[1771158387732,0.07106372,70361.0,70357.0,0.0002]
[1771158388554,0.07174563,70362.0,70357.0,0.0002]
[1771158388555,0.07174563,70362.0,70357.0,0.07126597]
[1771158388979,0.0006829,70362.0,70358.0,0.07106481]
[1771158389186,0.0004,70366.0,70357.0,0.0002]
[1771158389364,0.07105938,70364.0,70359.0,0.07106327]
[1771158390349,0.07145805,70366.0,70357.0,0.0002]
[1771158390552,0.07106399,70360.0,70354.0,0.07106895]
[1771158390753,0.27138026,70363.0,70356.0,0.07106682]
[1771158390983,0.07106239,70361.0,70356.0,0.07106682]
[1771158391186,0.07106356,70360.0,70355.0,0.07106786]
[1771158391400,0.07106239,70361.0,70355.0,0.07106786]
[1771158391598,0.07106239,70361.0,70356.0,0.07106713]
[1771158391818,0.07145788,70366.0,70360.0,0.07106306]
[1771158392035,0.07105911,70364.0,70359.0,0.07106352]
[1771158392174,0.07106044,70363.0,70358.0,0.07106332]
[1771158392576,0.07106115,70362.0,70357.0,0.07106454]
[1771158392770,0.07106044,70363.0,70357.0,0.07106454]
[1771158392982,0.07106044,70363.0,70358.0,0.07106487]
[1771158395145,0.0004,70362.0,70358.0,0.07106487]
[1771158395700,0.0004,70362.0,70357.0,0.07126454]
[1771158395908,0.0004,70362.0,70358.0,0.07106494]
[1771158396126,0.0004,70362.0,70361.0,0.07106209]
[1771158397452,0.0004,70362.0,70359.0,0.07106371]
[1771158397892,0.0004,70362.0,70360.0,0.07106301]
[1771158398129,0.0004,70362.0,70360.0,0.07106289]
[1771158398344,0.0004,70362.0,70361.0,0.07106209]
[1771158399183,0.0004,70366.0,70363.0,0.01218481]
[1771158399395,0.0004,70366.0,70364.0,0.07105851]
[1771158399607,0.0004,70366.0,70365.0,0.07105805]
[1771158400010,0.0004,70366.0,70364.0,0.07105851]
[1771158400221,0.0004,70366.0,70365.0,0.07105805]
[1771158400422,0.0004,70368.0,70366.0,0.07105704]
[1771158400637,0.0004,70368.0,70367.0,0.07105603]
[1771158401501,0.00044,70370.0,70369.0,0.07105401]
[1771158405723,0.00044,70370.0,70369.0,0.09402814]
[1771158406558,0.00044,70370.0,70369.0,0.07105401]
[1771158408005,0.0006821,70370.0,70369.0,0.07105401]
[1771158408227,0.0006821,70370.0,70368.0,0.07105466]
[1771158408430,0.0006821,70370.0,70369.0,0.07105401]
[1771158412052,0.0004,70374.0,70372.0,0.07105022]
[1771158412227,0.0004,70374.0,70373.0,0.07104997]
[1771158413215,0.0004,70378.0,70376.0,0.07104651]
[1771158413418,0.0004,70378.0,70376.0,0.02297413]
[1771158413612,0.0004,70378.0,70376.0,0.09402053]
[1771158413823,0.0004,70378.0,70377.0,0.07104593]
[1771158414437,1e-08,70378.0,70377.0,0.09402006]
[1771158415265,1e-08,70378.0,70377.0,0.07104593]
[1771158417057,1e-08,70378.0,70377.0,0.09402006]
[1771158417479,1e-08,70378.0,70377.0,0.02297413]
[1771158417664,1e-08,70378.0,70376.0,0.07104622]
[1771158417811,1e-08,70378.0,70377.0,0.07104593]
[1771158418867,1e-08,70378.0,70376.0,0.07104663]
[1771158419313,1e-08,70378.0,70377.0,0.07104593]
[1771158419513,0.07104158,70383.0,70377.0,0.07104593]
[1771158419514,0.07103501,70388.0,70383.0,0.07103932]
[1771158419714,0.07103625,70387.0,70382.0,0.0940146]
[1771158419917,0.07103625,70387.0,70382.0,0.0709969]
[1771158420980,0.07103625,70387.0,70381.0,0.07104038]
[1771158421201,0.28417204,70390.0,70373.0,0.07104916]
[1771158421202,0.0710453,70378.0,70373.0,0.07104916]
[1771158421413,0.07104359,70380.0,70374.0,0.07104877]
[1771158421617,0.07104359,70380.0,70355.0,0.56853876]
[1771158421618,0.2752869,70385.0,70363.0,0.02297413]
[1771158421864,0.07104936,70374.0,70369.0,0.07105393]
[1771158422071,0.07104801,70375.0,70370.0,0.07109236]
[1771158422290,0.07104874,70376.0,70370.0,0.071093]
[1771158422490,0.07104262,70381.0,70375.0,0.07104778]
[1771158422701,0.02310861,70385.0,70370.0,4e-05]
[1771158422702,0.02310861,70385.0,70380.0,0.07104197]
[1771158422907,0.07103658,70387.0,70381.0,0.07104137]
[1771158423126,0.07143754,70386.0,70379.0,0.07104238]
[1771158423328,0.07143754,70386.0,70371.0,0.28216984]